bitfinex/quotes_BTCUSD_20251219
["timestamp","ask_amount","ask_price","bid_price","bid_amount"]
[1766157728153,0.10668849,88354.0,88326.0,0.0025]
[1766157728154,0.0025,88350.0,88326.0,0.0025]
[1766157728360,0.01142683,88355.0,88326.0,0.0125]
[1766157728571,0.00010886,88355.0,88330.0,0.0025]
[1766157728873,0.00010886,88355.0,88329.0,0.60284]
[1766157728874,0.01131656,88366.0,88343.0,0.05001839]
[1766157729073,0.04532,88384.0,88343.0,0.05001839]
[1766157729074,0.01131861,88350.0,88343.0,8.6e-07]
[1766157729345,0.04532,88366.0,88350.0,0.001099]
[1766157729521,0.04532,88366.0,88334.0,0.01]
[1766157729522,0.01131823,88353.0,88334.0,0.01]
[1766157729735,0.01131861,88350.0,88334.0,0.01]
[1766157729915,0.01131951,88343.0,88334.0,0.01]
[1766157730114,0.10418849,88349.0,88315.0,0.45923]
[1766157730316,0.0062,88358.0,88299.0,0.05961488]
[1766157730317,0.0062,88358.0,88331.0,0.06001839]
[1766157730540,0.11332856,88366.0,88333.0,0.01]
[1766157730541,0.01131797,88355.0,88333.0,0.01]
[1766157730699,0.01131836,88352.0,88333.0,0.01]
[1766157730926,0.10668849,88365.0,88335.0,0.01]
[1766157731128,0.0516288,88366.0,88340.0,0.05001839]
[1766157731129,0.01049683,88364.0,88340.0,0.05001839]
[1766157731390,0.01049683,88363.0,88342.0,0.65535839]
[1766157731594,0.01049683,88363.0,88340.0,1.75179046]
[1766157731595,0.01131772,88357.0,88348.0,0.0025]
[1766157731795,0.01131772,88357.0,88323.0,0.03961488]
[1766157731796,0.01131823,88353.0,88344.0,0.0025]
[1766157732009,0.05658703,88360.0,88344.0,0.0025]
[1766157732221,0.01131695,88363.0,88344.0,0.0025]
[1766157732372,0.01052882,88362.0,88344.0,0.0025]
[1766157732579,0.05659016,88355.0,88344.0,0.0025]
[1766157732784,0.05659016,88355.0,88337.0,0.45923]
[1766157732785,0.01052882,88361.0,88316.0,0.03961488]
[1766157732786,0.01132092,88332.0,88316.0,0.03961488]
[1766157732987,0.01132092,88332.0,88313.0,0.05942232]
[1766157732988,0.05661801,88312.0,88306.0,0.04532]
[1766157733182,0.01132272,88318.0,88312.0,0.001099]
[1766157733396,0.01132374,88310.0,88307.0,0.00616]
[1766157733635,0.01132246,88320.0,88307.0,0.00616]
[1766157733842,0.10418849,88346.0,88308.0,0.01]
[1766157734050,0.10418849,88346.0,88310.0,1.24004207]
[1766157734051,0.01132054,88335.0,88310.0,1.24004207]
[1766157734244,0.02185869,88334.0,88311.0,0.05001839]
[1766157734398,0.0025,88338.0,88311.0,0.05001839]
[1766157734399,0.01132143,88328.0,88311.0,0.05001839]
[1766157734613,0.0025,88338.0,88296.0,0.45923]
[1766157734614,0.001099,88311.0,88296.0,0.45923]
[1766157734824,0.001099,88311.0,88295.0,0.04532]
[1766157734825,0.01132387,88309.0,88295.0,0.04532]
[1766157735030,0.1600548,88308.0,88275.0,0.03961488]
[1766157735399,0.01241,88319.0,88270.0,0.05942232]
[1766157735400,0.01054631,88307.0,88273.0,0.61534]
[1766157735553,0.05001839,88345.0,88272.0,0.00616]
[1766157735554,0.0025,88324.0,88290.0,1.2423789]
[1766157735748,0.0025,88324.0,88293.0,0.01]
[1766157735749,0.06793739,88317.0,88293.0,0.01]
[1766157735952,0.056613,88319.0,88292.0,0.45923]
[1766157735953,0.0113222,88322.0,88292.0,1.06207]
[1766157736156,0.01132451,88304.0,88290.0,0.00035999]
[1766157736359,0.10418849,88318.0,88290.0,0.00035999]
[1766157736360,0.01132592,88293.0,88290.0,0.00035999]
[1766157736716,0.16081182,88303.0,88279.0,0.01]
[1766157736717,0.01132207,88323.0,88285.0,0.01132695]
[1766157736922,0.10067435,88388.0,88283.0,0.00616]
[1766157736923,0.01131849,88351.0,88312.0,0.60284]
[1766157737130,0.01131849,88351.0,88313.0,0.0025]
[1766157737131,0.01132054,88335.0,88313.0,0.0025]
[1766157737414,0.01132041,88336.0,88313.0,0.05398]
[1766157737605,0.01131964,88342.0,88313.0,0.05398]
[1766157737825,0.00010878,88351.0,88313.0,0.05398]
[1766157737826,0.01131913,88346.0,88313.0,0.05398]
[1766157738029,0.00010878,88351.0,88328.0,0.0025]
[1766157738233,0.00010878,88351.0,88329.0,0.00616]
[1766157738473,0.00010878,88351.0,88330.0,0.0025]
[1766157738674,0.00010878,88351.0,88329.0,0.00616]
[1766157738675,0.00010878,88351.0,88341.0,0.58661]
[1766157738804,0.01131567,88373.0,88343.0,0.0025]
[1766157738805,0.01131605,88370.0,88343.0,0.0025]
[1766157739009,0.01131708,88362.0,88343.0,0.0025]
[1766157739232,0.00010884,88362.0,88343.0,0.0025]
[1766157739699,0.45252867,88393.0,88342.0,0.48872]
[1766157739700,0.01131324,88392.0,88362.0,0.0025]
[1766157739856,0.04532,88417.0,88361.0,0.10418849]
[1766157739857,0.04532,88417.0,88391.0,0.10308849]
[1766157740066,0.01130748,88437.0,88395.0,0.01131285]
[1766157740391,0.01130748,88437.0,88394.0,0.0025]
[1766157740392,0.001099,88395.0,88394.0,0.0025]
[1766157740581,0.01130978,88419.0,88394.0,0.0025]
[1766157740813,0.00616,88427.0,88394.0,0.48506]
[1766157740942,0.04532,88434.0,88394.0,0.48506]
[1766157740943,0.04532,88434.0,88409.0,0.20815068]
[1766157741292,0.01130735,88438.0,88410.0,0.00616]
[1766157741492,0.01130761,88436.0,88410.0,0.00616]
[1766157741719,0.06785189,88428.0,88411.0,0.0025]
[1766157742001,0.01130965,88420.0,88405.0,0.0025]
[1766157742269,0.01131004,88417.0,88407.0,0.21065068]
[1766157742470,0.00616,88434.0,88385.0,0.58661]
[1766157742471,0.01131042,88414.0,88385.0,0.58661]
[1766157742602,0.0025,88421.0,88398.0,0.0025]
[1766157742603,0.01131144,88406.0,88398.0,0.0025]
[1766157742804,0.0025,88421.0,88378.0,0.01]
[1766157742805,0.01131208,88401.0,88378.0,0.01]
[1766157743013,0.01131298,88394.0,88379.0,0.05148]
[1766157743217,0.0025,88412.0,88380.0,0.00616]
[1766157743218,0.01131349,88390.0,88380.0,0.00616]
[1766157743437,0.2262945,88381.0,88364.0,0.04532]
[1766157743599,0.00616,88386.0,88354.0,0.79476068]
[1766157743799,0.0216,88405.0,88383.0,0.0025]
[1766157743800,0.01131324,88392.0,88383.0,0.0025]
[1766157744055,0.05656352,88397.0,88383.0,0.0025]
[1766157744231,0.01131336,88391.0,88374.0,0.00616]
[1766157744431,0.05656277,88398.0,88374.0,0.00616]
[1766157744633,0.00616,88400.0,88374.0,0.00616]
[1766157744634,0.01131234,88399.0,88374.0,0.00616]
[1766157744837,0.0113117,88404.0,88382.0,0.20815068]
[1766157745026,0.01130991,88418.0,88404.0,0.001099]
[1766157745232,0.01,88425.0,88389.0,0.0025]
[1766157745233,0.01130876,88427.0,88405.0,0.00866]
[1766157745444,0.00616,88430.0,88407.0,0.0025]
[1766157745445,0.01130927,88423.0,88407.0,0.0025]
[1766157745648,0.00616,88430.0,88407.0,0.0025]
[1766157745649,0.01131017,88416.0,88407.0,0.0025]
[1766157745846,0.01131247,88398.0,88370.0,0.01]
[1766157746048,0.01131439,88383.0,88377.0,0.0025]
[1766157746257,0.0025,88404.0,88377.0,0.0025]
[1766157746258,0.05656436,88395.0,88383.0,0.001099]
[1766157746436,0.00010876,88395.0,88383.0,0.001099]
[1766157746835,0.00010876,88395.0,88378.0,0.10408064]
[1766157746836,0.00010876,88395.0,88380.0,0.0025]
[1766157747039,0.05657047,88386.0,88380.0,0.0025]
[1766157747291,0.01131375,88388.0,88376.0,0.0025]
[1766157747476,0.06798651,88395.0,88376.0,0.0025]
[1766157747777,0.00010876,88395.0,88376.0,0.0025]
[1766157747936,0.00010876,88395.0,88378.0,0.0125]
[1766157748178,0.01131554,88374.0,88349.0,0.58661]
[1766157748515,0.01131592,88371.0,88347.0,0.00616]
[1766157748715,0.01131592,88371.0,88349.0,0.0125]
[1766157748856,0.0025,88381.0,88370.0,0.00179341]
[1766157749058,0.04532,88390.0,88358.0,0.0025]
[1766157749059,0.01131413,88385.0,88358.0,0.00866]
[1766157749243,0.01747426,88384.0,88360.0,0.0025]
[1766157749442,0.01747426,88384.0,88350.0,0.58661]
[1766157749443,0.10408064,88377.0,88329.0,0.04532]
[1766157749669,0.0113181,88354.0,88330.0,0.00616]
[1766157749873,0.01131772,88357.0,88330.0,0.00616]
[1766157749874,0.01131785,88356.0,88330.0,0.00616]
[1766157750076,0.01131772,88357.0,88330.0,0.00616]
[1766157750313,0.01,88372.0,88331.0,0.02382105]
[1766157750515,0.04010849,88426.0,88330.0,0.01748118]
[1766157750516,0.04532,88377.0,88358.0,0.0025]
[1766157750666,1.13098657,88419.0,88367.0,0.001099]
[1766157750667,0.0025,88383.0,88367.0,0.001099]
[1766157750868,0.0025,88383.0,88358.0,0.0025]
[1766157750869,0.0025,88381.0,88358.0,0.0025]
[1766157751069,0.00260874,88381.0,88358.0,0.0025]
[1766157751275,0.01131477,88380.0,88358.0,0.0025]
[1766157751498,0.0113181,88354.0,88344.0,0.01]
[1766157751795,0.10408064,88365.0,88339.0,0.01]
[1766157751796,0.01131964,88342.0,88339.0,0.01]
[1766157752002,0.10408064,88365.0,88323.0,0.00612]
[1766157752003,0.01132054,88335.0,88323.0,0.00612]
[1766157752215,0.01743951,88343.0,88335.0,0.001099]
[1766157752427,0.01131951,88343.0,88335.0,0.001099]
[1766157752621,0.01132041,88336.0,88325.0,0.00612]
[1766157752828,0.01132041,88336.0,88308.0,1.17335849]
[1766157752829,0.01132041,88336.0,88335.0,0.00010884]
[1766157753049,0.01132041,88336.0,88308.0,1.06917]
[1766157753050,0.01132284,88317.0,88308.0,0.48256]
[1766157753283,0.22643206,88327.0,88317.0,0.000909]
[1766157753284,0.0113222,88322.0,88317.0,0.000909]
[1766157753551,0.0113222,88322.0,88288.0,0.03993835]
[1766157753552,0.0025,88317.0,88279.0,0.48256]
[1766157753753,0.01132387,88309.0,88280.0,0.10408064]
[1766157753976,0.01132387,88309.0,88281.0,0.49506]
[1766157753977,0.00612,88309.0,88281.0,0.49506]
[1766157754201,0.00612,88309.0,88280.0,1.34645954]
[1766157754202,0.05662568,88300.0,88283.0,0.01]
[1766157754421,0.01744515,88299.0,88271.0,0.00612]
[1766157754648,0.10408064,88308.0,88271.0,0.00612]
[1766157754866,0.05662129,88306.0,88273.0,0.45463]
[1766157755077,0.01132566,88295.0,88274.0,0.01862]
[1766157755288,0.0113249,88301.0,88276.0,0.0025]
[1766157755515,0.00612,88307.0,88276.0,0.0025]
[1766157755723,0.01744413,88307.0,88277.0,0.62151]
[1766157755947,0.27178471,88314.0,88277.0,0.62151]
[1766157755948,0.00612,88306.0,88280.0,0.10408064]
[1766157756169,0.00612,88306.0,88281.0,0.0025]
[1766157756381,0.00612,88307.0,88281.0,0.0025]
[1766157756592,0.01132464,88303.0,88281.0,0.0025]
[1766157756817,0.01132528,88298.0,88281.0,0.0025]
[1766157757026,0.01132528,88298.0,88270.0,1.2423789]
[1766157757027,0.01132631,88290.0,88283.0,0.0025]
[1766157757245,0.00612,88297.0,88283.0,0.0025]
[1766157757246,0.00612,88295.0,88283.0,0.0025]
[1766157757501,0.01132284,88317.0,88287.0,0.0025]
[1766157757747,0.01132477,88302.0,88289.0,0.0025]
[1766157757964,0.01132477,88302.0,88283.0,0.45463]
[1766157757965,0.01132566,88295.0,88277.0,0.01]
[1766157758185,0.001099,88289.0,88286.0,0.0025]
[1766157758417,0.06793967,88315.0,88286.0,0.0025]
[1766157758418,0.01132002,88339.0,88302.0,0.01132477]
[1766157758612,0.01132246,88320.0,88303.0,0.00612]
[1766157758826,0.01132233,88321.0,88302.0,0.00010878]
[1766157758827,0.01132438,88305.0,88302.0,0.00010878]
[1766157759034,0.01132425,88306.0,88297.0,0.00612]
[1766157759252,0.01132348,88312.0,88297.0,0.00612]
[1766157759253,0.14940064,88339.0,88306.0,0.001099]
[1766157759464,0.14940064,88339.0,88307.0,0.00862]
[1766157759465,0.01132143,88328.0,88307.0,0.00862]
[1766157759684,0.04532,88339.0,88304.0,0.10408064]
[1766157759685,0.00612,88327.0,88304.0,0.10408064]
[1766157759910,0.10408064,88332.0,88305.0,0.0025]
[1766157760112,0.0679291,88328.0,88307.0,0.00373715]
[1766157760327,0.01132246,88320.0,88305.0,0.0025]
[1766157760539,0.05661169,88321.0,88305.0,0.0025]
[1766157760761,0.05661169,88321.0,88288.0,0.01]
[1766157760762,0.01132387,88309.0,88288.0,0.01]
[1766157760984,0.01132387,88309.0,88268.0,0.01132913]
[1766157760985,0.01132592,88293.0,88275.0,0.62151]
[1766157761218,0.01132592,88293.0,88276.0,0.00612]
[1766157761219,0.01132605,88292.0,88276.0,0.00612]
[1766157761480,0.0001086,88293.0,88276.0,0.00612]
[1766157761736,0.45287108,88326.0,88276.0,0.00612]
[1766157761737,0.01132348,88312.0,88285.0,0.10408064]
[1766157761995,0.01132425,88306.0,88286.0,0.00612]
[1766157762178,0.01132195,88324.0,88300.0,0.10408064]
[1766157762369,0.02,88370.0,88315.0,0.10408064]
[1766157762579,0.01132079,88333.0,88315.0,0.10408064]
[1766157762784,0.06792428,88334.0,88315.0,0.10408064]
[1766157762918,0.01744054,88335.0,88315.0,0.10408064]
[1766157762919,0.01132182,88325.0,88315.0,0.10408064]
[1766157763122,0.01132156,88327.0,88307.0,0.00612]
[1766157763327,0.00612,88335.0,88303.0,0.00862]
[1766157763328,0.01132297,88316.0,88303.0,0.00862]
[1766157763533,0.01132297,88316.0,88274.0,0.03993835]
[1766157763534,0.00612,88321.0,88271.0,0.14401899]
[1766157763731,0.00612,88321.0,88244.0,0.0004]
[1766157763732,0.01132951,88265.0,88244.0,0.0004]
[1766157764057,0.01133041,88258.0,88244.0,0.0004]
[1766157764260,0.01133041,88258.0,88227.0,0.00612]
[1766157764261,0.01133285,88239.0,88218.0,0.62151]
[1766157764433,0.01133285,88239.0,88217.0,0.0002]
[1766157764434,0.00612,88238.0,88217.0,0.0002]
[1766157764632,0.01133182,88247.0,88238.0,0.001099]
[1766157764861,0.0025,88263.0,88238.0,0.001099]
[1766157764862,0.00612,88246.0,88238.0,0.001099]
[1766157765135,0.00612,88249.0,88238.0,0.00036227]
[1766157765337,0.00612,88248.0,88238.0,0.00036227]
[1766157765535,0.01133221,88244.0,88238.0,0.00036227]
[1766157765802,0.45309968,88281.0,88244.0,0.001099]
[1766157765963,0.0025,88279.0,88244.0,0.001099]
[1766157766163,0.01133182,88247.0,88243.0,0.0057145]
[1766157766385,0.05666957,88231.0,88212.0,0.62151]
[1766157766587,0.01133401,88230.0,88212.0,0.62763]
[1766157766762,0.00036257,88231.0,88212.0,0.62763]
[1766157766964,0.00612,88238.0,88212.0,0.62763]
[1766157766965,0.01133131,88251.0,88231.0,0.000362]
[1766157767163,0.01133131,88251.0,88232.0,0.0025]
[1766157767164,0.05665786,88250.0,88232.0,0.0025]
[1766157767373,0.05665786,88250.0,88231.0,0.0001086]
[1766157767374,0.00612,88249.0,88231.0,0.0001086]
[1766157767618,0.01133247,88242.0,88232.0,0.0025]
[1766157767981,0.00612,88248.0,88232.0,0.0025]
[1766157768191,0.01132939,88266.0,88242.0,0.001099]
[1766157768335,0.01132939,88266.0,88231.0,0.0001086]
[1766157768336,0.01133028,88259.0,88238.0,0.00862]
[1766157768540,0.01133144,88250.0,88232.0,0.0025]
[1766157768721,0.00612,88249.0,88232.0,0.0025]
[1766157768945,0.0113308,88255.0,88231.0,0.0001086]
[1766157769150,0.01133118,88252.0,88231.0,0.0001086]
[1766157769335,0.0025,88264.0,88231.0,0.0062286]
[1766157769540,0.04536,88270.0,88238.0,0.0125]
[1766157769756,0.33078896,88289.0,88250.0,0.01133144]
[1766157769757,0.10425992,88289.0,88250.0,0.01133144]
[1766157769979,0.011324,88308.0,88271.0,0.0025]
[1766157770180,0.10425992,88296.0,88270.0,0.001099]
[1766157770386,0.10425992,88296.0,88259.0,0.0025]
[1766157770387,0.01132579,88294.0,88259.0,0.0025]
[1766157770602,0.01132605,88292.0,88259.0,0.0025]
[1766157770811,0.04536,88307.0,88248.0,0.0113317]
[1766157770812,0.10408064,88310.0,88261.0,0.0025]
[1766157771017,0.10425992,88296.0,88263.0,0.45713]
[1766157771219,0.05148,88295.0,88264.0,0.62151]
[1766157771433,0.00612,88297.0,88266.0,0.45463]
[1766157771671,0.04536,88306.0,88266.0,0.45463]
[1766157771672,0.0025,88295.0,88266.0,0.45463]
[1766157771888,0.0025,88295.0,88264.0,0.00612]
[1766157771889,0.005021,88294.0,88275.0,0.0025]
[1766157772091,0.01132438,88305.0,88275.0,0.45713]
[1766157772265,0.00612,88304.0,88275.0,0.45713]
[1766157772511,0.01132156,88327.0,88285.0,0.62151]
[1766157772723,0.02,88340.0,88285.0,0.62151]
[1766157772724,0.01132425,88306.0,88287.0,0.0025]
[1766157772922,0.01132528,88298.0,88272.0,0.00612]
[1766157773125,0.001099,88287.0,88268.0,0.00612]
[1766157773275,0.00612,88293.0,88269.0,0.0025]
[1766157773770,0.05662016,88308.0,88270.0,0.62151]
[1766157774001,0.01132528,88298.0,88273.0,0.0025]
[1766157774223,0.01132233,88321.0,88281.0,0.45713]
[1766157774440,0.03006169,88371.0,88274.0,0.15427831]
[1766157774441,1.12027738,88370.0,88298.0,0.0025]
[1766157774647,1.12027738,88370.0,88301.0,0.0125]
[1766157774648,0.01132169,88326.0,88301.0,0.0125]
[1766157774888,0.00612,88326.0,88303.0,0.0125]
[1766157775087,0.0627287,88326.0,88303.0,0.0125]
[1766157775329,0.01132028,88337.0,88305.0,0.0025]
[1766157775544,0.001099,88305.0,88300.0,0.0025]
[1766157775763,0.001099,88305.0,88299.0,0.00608]
[1766157775979,0.22644086,88324.0,88294.0,0.0025]
[1766157775980,0.01132041,88336.0,88298.0,0.0025]
[1766157776204,0.01132118,88330.0,88312.0,0.62151]
[1766157776456,0.01132118,88330.0,88297.0,0.05609839]
[1766157776457,0.01132118,88330.0,88302.0,0.0025]
[1766157776678,0.22638775,88344.0,88297.0,0.04536]
[1766157776679,0.05667874,88349.0,88315.0,0.0025]
[1766157776896,0.05667874,88349.0,88330.0,0.00073599]
[1766157776897,0.01739887,88348.0,88330.0,0.00073599]
[1766157777143,0.01739887,88348.0,88316.0,0.00608]
[1766157777144,0.06791749,88343.0,88316.0,0.00608]
[1766157777364,0.01132118,88330.0,88316.0,0.00608]
[1766157777577,0.01132105,88331.0,88316.0,0.00608]
[1766157777799,0.00608,88335.0,88316.0,0.00608]
[1766157778008,0.01131964,88342.0,88316.0,0.00608]
[1766157778009,0.01131951,88343.0,88317.0,1.07614]
[1766157778220,0.04536,88360.0,88324.0,0.0025]
[1766157778435,0.00608,88356.0,88327.0,0.0025]
[1766157778646,0.01131772,88357.0,88327.0,0.00260883]
[1766157778865,0.01131733,88360.0,88331.0,0.0025]
[1766157779096,0.05657744,88375.0,88340.0,0.0025]
[1766157779333,0.00608,88374.0,88343.0,0.05659724]
[1766157779562,0.0138973,88382.0,88341.0,0.05609839]
[1766157779563,0.00258278,88382.0,88354.0,1.07864]
[1766157779774,0.01131592,88371.0,88354.0,0.0025]
[1766157780008,0.00258278,88382.0,88354.0,0.0025]
[1766157780249,0.01131516,88377.0,88354.0,0.62401]
[1766157780465,0.00608,88381.0,88331.0,0.02994325]
[1766157780466,0.01131964,88342.0,88331.0,0.02994325]
[1766157780684,0.00036,88373.0,88305.0,0.01132438]
[1766157780685,0.10425992,88390.0,88342.0,0.000736]
[1766157780900,0.10425992,88390.0,88326.0,0.05001839]
[1766157780901,0.01131631,88368.0,88344.0,0.45463]
[1766157781137,0.04532,88401.0,88356.0,0.01131785]
[1766157781360,0.01131503,88378.0,88366.0,0.45463]
[1766157781565,0.01131503,88378.0,88352.0,0.05001839]
[1766157781566,2.78e-06,88382.0,88354.0,0.05001839]
[1766157781771,0.01131516,88377.0,88357.0,1.07614]
[1766157781982,0.01131503,88378.0,88357.0,1.07614]
[1766157782192,0.01131503,88378.0,88341.0,0.01131977]
[1766157782193,0.01131669,88365.0,88338.0,1.07614]
[1766157782408,0.01131516,88377.0,88349.0,0.05001839]
[1766157782641,0.01131516,88377.0,88345.0,0.05001839]
[1766157782642,0.01131208,88401.0,88365.0,0.10425992]
[1766157782889,0.00608,88416.0,88377.0,0.001099]
[1766157783101,0.10425992,88429.0,88379.0,0.0025]
[1766157783102,0.06786504,88411.0,88379.0,0.0025]
[1766157783318,0.00608,88420.0,88389.0,0.62151]
[1766157783525,0.00608,88420.0,88364.0,0.13420317]
[1766157783526,0.22622898,88406.0,88368.0,0.0025]
[1766157783738,0.00608,88416.0,88382.0,0.0025]
[1766157783952,0.00608,88416.0,88380.0,0.0025]
[1766157783953,0.00010881,88406.0,88388.0,0.62401]
[1766157784231,0.22619383,88420.0,88383.0,0.00608]
[1766157784232,0.04532,88447.0,88406.0,0.600398]
[1766157784447,0.00036265,88447.0,88418.0,0.01130991]
[1766157784668,0.00036265,88447.0,88421.0,0.0025]
[1766157784924,0.00036265,88447.0,88420.0,0.61029]
[1766157784925,0.01130735,88438.0,88420.0,0.0025]
[1766157785141,0.01130646,88445.0,88420.0,0.0025]
[1766157785362,0.00036265,88447.0,88422.0,0.60029]
[1766157785591,0.00036265,88447.0,88435.0,0.45679]
[1766157785807,0.00036265,88447.0,88437.0,0.0025]
[1766157786451,0.01130492,88457.0,88437.0,0.0025]
[1766157786670,0.00010871,88457.0,88447.0,0.000362]
[1766157786891,0.00010871,88457.0,88446.0,0.00608]
[1766157787123,0.0004,88464.0,88447.0,1.05458]
[1766157787343,0.0004,88464.0,88457.0,0.000108]
[1766157787555,0.01130262,88475.0,88464.0,0.0004]
[1766157787789,0.01130441,88461.0,88453.0,0.00608]
[1766157788031,0.20807536,88480.0,88410.0,1.25623738]
[1766157788032,0.0113062,88447.0,88429.0,0.45429]
[1766157788249,0.00010858,88447.0,88431.0,1.05708]
[1766157788467,0.01130352,88468.0,88447.0,0.000228]
[1766157788704,0.00608,88475.0,88447.0,0.000228]
[1766157788705,0.01130416,88463.0,88447.0,0.000228]
[1766157788922,0.01130416,88463.0,88444.0,0.60029]
[1766157788923,0.01130505,88456.0,88434.0,0.01]
[1766157789143,0.20807536,88462.0,88435.0,0.0025]
[1766157789359,0.01130633,88446.0,88435.0,0.00858]
[1766157789581,0.20807536,88462.0,88396.0,0.01131272]
[1766157789582,0.01130786,88434.0,88396.0,0.01131272]
[1766157789799,0.01130876,88427.0,88406.0,0.01]
[1766157790007,0.01130889,88426.0,88408.0,0.01]
[1766157790228,0.01130914,88424.0,88409.0,0.00608]
[1766157790436,0.01130914,88424.0,88408.0,0.04532]
[1766157790437,0.06785967,88418.0,88404.0,0.00608]
[1766157790662,0.01130991,88418.0,88404.0,0.00608]
[1766157790883,0.01131324,88392.0,88379.0,0.45429]
[1766157791105,0.01131157,88405.0,88392.0,0.000699]
[1766157791346,0.0113117,88404.0,88392.0,0.000699]
[1766157791567,0.0113108,88411.0,88391.0,0.00608]
[1766157791804,0.04528,88427.0,88391.0,0.00608]
[1766157791805,0.00099999,88460.0,88400.0,0.10405298]
[1766157792062,0.10405298,88479.0,88397.0,0.0113126]
[1766157792063,0.01130812,88432.0,88403.0,0.0125]
[1766157792277,0.01130735,88438.0,88408.0,0.0025]
[1766157792501,0.01131221,88400.0,88395.0,0.04528]
[1766157792729,0.2262183,88411.0,88359.0,0.45429]
[1766157792730,0.01131439,88383.0,88359.0,0.45429]
[1766157792952,0.0113126,88397.0,88383.0,0.001099]
[1766157793179,0.00608,88407.0,88384.0,0.00608]
[1766157793180,0.01131208,88401.0,88384.0,0.00608]
[1766157793389,0.05656431,88395.0,88384.0,0.00608]
[1766157793624,0.01131247,88398.0,88384.0,0.00618858]
[1766157793827,0.0565643,88395.0,88385.0,0.00302]
[1766157794038,0.01131196,88402.0,88385.0,0.00302]
[1766157794249,0.01131196,88402.0,88384.0,0.00010858]
[1766157794250,0.01131388,88387.0,88384.0,0.00010858]
[1766157794465,0.05656684,88391.0,88386.0,0.00608]
[1766157794671,0.0565694,88387.0,88386.0,0.00608]
[1766157794876,0.06788328,88387.0,88384.0,0.00010858]
[1766157795101,0.01131119,88408.0,88387.0,0.001099]
[1766157795311,0.13592,88448.0,88394.0,0.0125]
[1766157795312,0.01130927,88423.0,88394.0,0.0125]
[1766157795522,0.01130927,88423.0,88393.0,0.05001839]
[1766157795523,0.05654698,88423.0,88397.0,0.05251839]
[1766157795739,0.01130991,88418.0,88398.0,0.00604]
[1766157795955,0.01130991,88418.0,88400.0,0.0025]
[1766157796167,0.01130978,88419.0,88401.0,0.05132]
[1766157796168,0.01131004,88417.0,88401.0,0.05132]
[1766157796399,0.01,88442.0,88400.0,0.0025]
[1766157796400,0.05655419,88411.0,88400.0,0.0025]
[1766157796628,0.05655419,88411.0,88395.0,0.01]
[1766157796629,0.01131375,88388.0,88373.0,0.45429]
[1766157796842,0.01131285,88395.0,88385.0,0.0025]
[1766157797042,0.0025,88409.0,88383.0,0.00604]
[1766157797043,0.01131208,88401.0,88383.0,0.00604]
[1766157797217,0.01131247,88398.0,88385.0,0.0025]
[1766157797425,0.01131311,88393.0,88385.0,0.0025]
[1766157797629,0.01131119,88408.0,88385.0,0.001401]
[1766157797839,0.01131119,88408.0,88374.0,0.01]
[1766157797840,0.10405298,88407.0,88375.0,0.04528]
[1766157798075,0.10405298,88407.0,88342.0,0.62169]
[1766157798076,0.0025,88381.0,88342.0,0.62169]
[1766157798252,0.45428,88382.0,88342.0,0.62169]
[1766157798253,0.01131695,88363.0,88343.0,0.05132]
[1766157798498,0.10405298,88375.0,88343.0,0.05132]
[1766157798499,0.0025,88399.0,88363.0,0.001099]
[1766157798692,0.0025,88380.0,88364.0,0.00604]
[1766157798854,0.01131618,88369.0,88353.0,0.04528]
[1766157799067,0.01131567,88373.0,88354.0,0.00604]
[1766157799276,0.0025,88380.0,88355.0,0.62169]
[1766157799490,0.01131592,88371.0,88355.0,0.62169]
[1766157799724,0.22630894,88375.0,88356.0,0.00604]
[1766157799968,0.01131388,88387.0,88358.0,0.48335]
[1766157800194,0.00604,88388.0,88357.0,0.00604]
[1766157800195,0.00604,88388.0,88375.0,0.001099]
[1766157800408,0.0025,88389.0,88375.0,0.007139]
[1766157800625,0.0002463,88390.0,88375.0,0.007139]
[1766157800626,0.45428,88423.0,88381.0,0.0025]
[1766157800851,0.04528,88418.0,88389.0,0.0025]
[1766157801067,0.51111837,88430.0,88396.0,0.0025]
[1766157801282,0.51111837,88430.0,88399.0,0.62169]
[1766157801283,0.00604,88429.0,88399.0,0.62169]
[1766157801506,0.00604,88429.0,88401.0,0.0025]
[1766157801507,0.01380901,88425.0,88401.0,0.0025]
[1766157801722,0.00036976,88402.0,88401.0,0.0025]
[1766157801932,0.04528,88430.0,88403.0,0.0025]
[1766157802148,0.0113094,88422.0,88403.0,0.0025]
[1766157802356,0.0113094,88422.0,88360.0,1.15122062]
[1766157802357,0.01131055,88413.0,88395.0,0.00604]
[1766157802573,0.01131068,88412.0,88395.0,0.00604]
[1766157802783,0.45203,88423.0,88395.0,0.00614881]
[1766157802784,0.01131183,88403.0,88395.0,0.00614881]
[1766157803213,0.01131106,88409.0,88395.0,0.00614881]
[1766157803444,0.01131375,88388.0,88363.0,0.04528]
[1766157803658,0.01131375,88388.0,88366.0,0.62169]
[1766157803659,0.00010861,88388.0,88366.0,0.62169]
[1766157803867,0.00010861,88388.0,88364.0,0.00604]
[1766157803868,6.1e-07,88388.0,88370.0,0.05001839]
[1766157804313,0.01131388,88387.0,88370.0,0.0025]
[1766157804529,0.01131388,88387.0,88353.0,0.62169]
[1766157804530,0.01131682,88364.0,88353.0,0.62169]
[1766157804762,0.01131682,88364.0,88335.0,0.62169]
[1766157804763,0.01131836,88352.0,88335.0,0.62169]
[1766157804975,0.01142623,88353.0,88335.0,0.62773]
[1766157805198,0.01131682,88364.0,88336.0,0.0025]
[1766157805432,0.011314,88386.0,88351.0,0.67828223]
[1766157805649,0.45203,88400.0,88351.0,0.67828223]
[1766157805650,0.0025,88382.0,88364.0,0.000991]
[1766157805867,0.00604,88381.0,88364.0,0.000108]
[1766157806090,0.01131196,88402.0,88369.0,0.0025]
[1766157806302,0.01735208,88401.0,88374.0,0.0025]
[1766157806536,0.00604,88401.0,88376.0,0.63419]
[1766157806749,0.00604,88401.0,88375.0,0.05605839]
[1766157806750,0.01735055,88413.0,88401.0,0.000991]
[1766157806958,0.01131247,88398.0,88392.0,0.00604]
[1766157807181,0.01131247,88398.0,88386.0,0.0025]
[1766157807182,0.000108,88392.0,88386.0,0.00854]
[1766157807390,0.01131157,88405.0,88386.0,0.00854]
[1766157807607,0.50773837,88430.0,88392.0,0.0025]